bitfinex/quotes_BTCUSD_20250123
["timestamp","ask_amount","ask_price","bid_price","bid_amount"]
[1737629360076,0.00034961,101450.0,101440.0,0.0987223]
[1737629360215,0.09891961,101450.0,101440.0,0.0987223]
[1737629360412,0.09891961,101450.0,101440.0,0.17071549]
[1737629361593,0.00034961,101450.0,101440.0,0.17071549]
[1737629365142,0.00034961,101450.0,101440.0,0.26806278]
[1737629367159,0.00034961,101450.0,101440.0,0.29882635]
[1737629367927,0.00034961,101450.0,101440.0,0.26806278]
[1737629371094,0.00034961,101450.0,101440.0,0.19606959]
[1737629371272,0.21088455,101450.0,101440.0,0.0001423]
[1737629371465,0.59218455,101450.0,101440.0,0.0001423]
[1737629371643,0.48021961,101450.0,101440.0,0.0001423]
[1737629372053,0.38164961,101450.0,101440.0,0.0001423]
[1737629372247,0.38164961,101450.0,101440.0,0.0987223]
[1737629372487,0.38164961,101450.0,101440.0,0.16975737]
[1737629372910,0.38164961,101450.0,101440.0,0.07117737]
[1737629373086,0.38164961,101450.0,101440.0,0.16975737]
[1737629374011,0.38164961,101450.0,101440.0,0.0987223]
[1737629376412,0.38164961,101450.0,101440.0,0.0001423]
[1737629376617,0.48021961,101450.0,101440.0,0.0001423]
[1737629378634,0.48021961,101450.0,101440.0,0.0987223]
[1737629379097,0.38164961,101450.0,101440.0,0.0987223]
[1737629379313,0.08164961,101450.0,101440.0,0.16975607]
[1737629379633,0.08164961,101450.0,101440.0,0.26710336]
[1737629379835,0.00034961,101450.0,101440.0,0.26710336]
[1737629383473,0.00034961,101450.0,101440.0,0.29784862]
[1737629383609,0.00034961,101450.0,101440.0,0.26710336]
[1737629385518,0.00034961,101450.0,101440.0,0.27659417]
[1737629387289,0.00034961,101450.0,101440.0,0.26710336]
[1737629387492,0.00034961,101450.0,101440.0,0.16975607]
[1737629387910,0.07854961,101450.0,101440.0,0.16975607]
[1737629390090,0.17711961,101450.0,101440.0,0.0001423]
[1737629390304,0.07854961,101450.0,101440.0,0.0987223]
[1737629392259,0.07854961,101450.0,101440.0,0.0001423]
[1737629392260,0.28908455,101450.0,101440.0,0.0001423]
[1737629392652,0.17711961,101450.0,101440.0,0.0001423]
[1737629396380,0.18696108,101450.0,101440.0,0.0001423]
[1737629397640,0.29892602,101450.0,101440.0,0.0001423]
[1737629398063,0.18696108,101450.0,101440.0,0.0001423]
[1737629400854,0.29892602,101450.0,101440.0,0.0001423]
[1737629401059,0.56627331,101450.0,101440.0,0.0001423]
[1737629402366,0.73430837,101450.0,101440.0,0.0001423]
[1737629403027,0.48696108,101450.0,101440.0,0.0001423]
[1737629405346,0.48696108,101450.0,101440.0,0.0987223]
[1737629405760,0.48696108,101450.0,101440.0,0.0001423]
[1737629406380,0.48696108,101450.0,101440.0,0.0987223]
[1737629406746,0.48696108,101450.0,101440.0,0.0001423]
[1737629407158,0.48696108,101450.0,101440.0,0.0987223]
[1737629407355,0.48696108,101450.0,101440.0,0.0001423]
[1737629407838,0.38839108,101450.0,101440.0,0.0001423]
[1737629408043,0.38839108,101450.0,101440.0,0.0987223]
[1737629408044,0.37854961,101450.0,101440.0,0.0987223]
[1737629408242,0.00034961,101450.0,101440.0,0.17895555]
[1737629408485,0.00034961,101450.0,101440.0,0.32620284]
[1737629409117,0.00034961,101450.0,101440.0,0.0987223]
[1737629409330,0.08024961,101450.0,101440.0,0.0987223]
[1737629409753,0.38024961,101450.0,101440.0,0.0987223]
[1737629410415,0.00034961,101450.0,101440.0,0.19606959]
[1737629411709,0.00034961,101450.0,101440.0,0.57673453]
[1737629411935,0.00034961,101450.0,101440.0,0.67408182]
[1737629412349,0.00034961,101450.0,101440.0,0.56211688]
[1737629414509,0.00034961,101450.0,101440.0,0.58135303]
[1737629415931,0.00034961,101450.0,101440.0,0.71631797]
[1737629416832,0.00034961,101450.0,101440.0,0.60435303]
[1737629417266,0.00034961,101450.0,101440.0,0.50700574]
[1737629417459,0.00034961,101450.0,101440.0,0.26440574]
[1737629419633,0.00034961,101450.0,101440.0,0.21530574]
[1737629420336,0.00034961,101450.0,101440.0,0.54727068]
[1737629420539,0.00034961,101450.0,101440.0,0.68687068]
[1737629420743,0.00034961,101450.0,101440.0,0.81490549]
[1737629421093,1e-08,101460.0,101450.0,0.32157]
[1737629421322,0.00029904,101480.0,101470.0,0.098551]
[1737629421557,0.00029904,101480.0,101470.0,0.19589829]
[1737629423524,0.3796,101480.0,101470.0,0.295642]
[1737629423724,0.3796,101480.0,101470.0,0.3646275]
[1737629424174,0.478141,101480.0,101470.0,0.1675365]
[1737629424347,0.29010594,101480.0,101460.0,0.295658]
[1737629424550,0.572316,101480.0,101460.0,0.295658]
[1737629424832,0.572316,101480.0,101460.0,0.492779]
[1737629425033,0.174051,101470.0,101460.0,0.295658]
[1737629425237,0.174051,101470.0,101460.0,0.098553]
[1737629425238,0.474051,101470.0,101460.0,0.098553]
[1737629425458,0.3755,101470.0,101460.0,0.1675468]
[1737629426199,0.3755,101470.0,101460.0,0.18681247]
[1737629429957,0.0756425,101470.0,101460.0,0.28415976]
[1737629430161,0.0001425,101470.0,101460.0,0.28415976]
[1737629434725,0.0001425,101470.0,101460.0,0.5691247]
[1737629434923,0.0792,101500.0,101490.0,0.098531]
[1737629435099,0.0793516,101500.0,101490.0,0.20573139]
[1737629437520,0.0001516,101500.0,101490.0,0.20573139]
[1737629437934,0.0001516,101500.0,101490.0,0.31769633]
[1737629438143,0.0001516,101500.0,101490.0,0.20573139]
[1737629441628,0.000294,101500.0,101490.0,0.20573139]
[1737629442845,0.000294,101500.0,101490.0,0.22522496]
[1737629444308,0.081194,101500.0,101490.0,0.11802457]
[1737629447623,0.081194,101500.0,101490.0,0.01949357]
[1737629447827,0.081194,101500.0,101490.0,0.11802457]
[1737629448440,0.081194,101500.0,101490.0,0.21537186]
[1737629450228,0.081194,101500.0,101490.0,0.01949357]
[1737629450430,0.081194,101500.0,101490.0,0.15938743]
[1737629452039,0.081194,101500.0,101490.0,0.25673472]
[1737629456156,0.000294,101500.0,101490.0,0.25673472]
[1737629459613,0.000294,101500.0,101490.0,0.26667589]
[1737629462367,0.000294,101500.0,101490.0,0.25673472]
[1737629462703,0.000294,101500.0,101490.0,0.21537186]
[1737629463681,0.078194,101500.0,101490.0,0.21537186]
[1737629464022,0.0686369,101500.0,101490.0,0.21537186]
[1737629464666,0.48060184,101500.0,101490.0,0.01949357]
[1737629464870,0.62802384,101500.0,101490.0,0.01949357]
[1737629465285,0.62802384,101500.0,101490.0,0.03129703]
[1737629465491,0.62816624,101500.0,101490.0,0.01949357]
[1737629466336,0.2956,101490.0,101470.0,0.69980832]
[1737629466541,0.2956,101490.0,101470.0,0.60006261]
[1737629466747,0.80610494,101490.0,101470.0,0.09884304]
[1737629466996,0.59030594,101480.0,101470.0,0.05653493]
[1737629467195,0.63640594,101480.0,101470.0,0.00029904]
[1737629467632,0.4259,101480.0,101470.0,0.09885004]
[1737629467828,0.0798,101480.0,101470.0,0.09885004]
[1737629469205,0.178341,101480.0,101470.0,0.09885004]
[1737629469612,0.29030594,101480.0,101470.0,0.00029904]
[1737629470200,0.178341,101480.0,101470.0,0.00029904]
[1737629471842,0.29030594,101480.0,101470.0,0.00029904]
[1737629473333,0.178341,101480.0,101470.0,0.00029904]
[1737629473755,0.29030594,101480.0,101470.0,0.00029904]
[1737629474158,0.478341,101480.0,101470.0,0.09885004]
[1737629474398,0.3798,101480.0,101470.0,0.17672534]
[1737629474599,0.478341,101480.0,101470.0,0.17672534]
[1737629474841,0.478341,101480.0,101470.0,0.00029904]
[1737629474965,0.59030594,101480.0,101470.0,0.00029904]
[1737629476006,0.40765323,101480.0,101470.0,0.00029904]
[1737629476234,0.45375323,101480.0,101470.0,0.00029904]
[1737629477319,0.63375323,101480.0,101470.0,0.00029904]
[1737629479822,0.58375323,101480.0,101470.0,0.00029904]
[1737629480015,0.63375323,101480.0,101470.0,0.00029904]
[1737629480215,0.69296323,101480.0,101470.0,0.00029904]
[1737629480438,0.63375323,101480.0,101470.0,0.00029904]
[1737629481246,0.58375323,101480.0,101470.0,0.00029904]
[1737629481415,0.60375323,101480.0,101470.0,0.00029904]
[1737629481628,0.58375323,101480.0,101470.0,0.00029904]
[1737629481831,0.60375323,101480.0,101470.0,0.00029904]
[1737629482024,0.58375323,101480.0,101470.0,0.00029904]
[1737629483241,0.60375323,101480.0,101470.0,0.00029904]
[1737629485711,0.58375323,101480.0,101470.0,0.00029904]
[1737629485936,0.60375323,101480.0,101470.0,0.00029904]
[1737629491268,0.65375323,101480.0,101470.0,0.00029904]
[1737629492134,0.63375323,101480.0,101470.0,0.00029904]
[1737629493692,0.58375323,101480.0,101470.0,0.00029904]
[1737629497213,0.60675323,101480.0,101470.0,0.00029904]
[1737629497616,0.65675323,101480.0,101470.0,0.00029904]
[1737629499247,0.65375323,101480.0,101470.0,0.00029904]
[1737629499487,0.58375323,101480.0,101470.0,0.00029904]
[1737629499829,0.60375323,101480.0,101470.0,0.00029904]
[1737629501553,0.178341,101480.0,101470.0,0.00029904]
[1737629501757,0.44030594,101480.0,101470.0,0.00029904]
[1737629503211,0.478341,101480.0,101470.0,0.09885004]
[1737629503445,0.098541,101480.0,101470.0,0.17252015]
[1737629503649,0.398541,101480.0,101470.0,0.17252015]
[1737629504066,0.098541,101480.0,101470.0,0.17252015]
[1737629504286,0.398541,101480.0,101470.0,0.17252015]
[1737629504737,0.3,101480.0,101470.0,0.17252015]
[1737629504945,0.3,101480.0,101470.0,0.36960915]
[1737629505152,0.398539,101490.0,101480.0,0.098541]
[1737629505365,0.398539,101490.0,101480.0,0.13550091]
[1737629506187,0.3,101490.0,101480.0,0.13550091]
[1737629506396,0.6710244,101500.0,101490.0,0.098531]
[1737629506596,0.6710244,101500.0,101480.0,0.57513391]
[1737629507187,0.6710244,101500.0,101480.0,0.37806091]
[1737629507387,0.98004434,101500.0,101480.0,0.57513491]
[1737629508402,0.098531,101490.0,101480.0,0.37806091]
[1737629508603,0.51049594,101490.0,101470.0,0.70338203]
[1737629508799,0.70756294,101490.0,101470.0,0.70338203]
[1737629509366,0.79267,101490.0,101470.0,0.62448203]
[1737629509566,0.70756294,101490.0,101470.0,0.42739303]
[1737629509776,0.595598,101490.0,101470.0,0.62448603]
[1737629509986,0.098541,101480.0,101470.0,0.23030403]
[1737629510189,0.098541,101480.0,101470.0,0.22061115]
[1737629510387,0.098541,101480.0,101470.0,0.14694104]
[1737629511024,0.398541,101480.0,101470.0,0.00029904]
[1737629511872,0.51050594,101480.0,101470.0,0.00029904]
[1737629513125,0.85295323,101480.0,101470.0,0.00029904]
[1737629514471,0.86291276,101480.0,101470.0,0.00029904]
[1737629515362,0.56291276,101480.0,101470.0,0.00029904]
[1737629516460,0.59251276,101480.0,101470.0,0.00029904]
[1737629520370,0.59234534,101480.0,101470.0,0.00029904]
[1737629521904,0.67931656,101480.0,101470.0,0.00029904]
[1737629522831,0.9142815,101480.0,101470.0,4e-08]
[1737629523504,1.02628088,101470.0,101460.0,8e-08]
[1737629523715,1.12362817,101470.0,101460.0,8e-08]
[1737629524128,1.15962817,101470.0,101460.0,8e-08]
[1737629524343,1.34101404,101470.0,101460.0,8e-08]
[1737629524547,0.72049988,101450.0,101440.0,3.8e-07]
[1737629524758,0.81784717,101450.0,101440.0,3.8e-07]
[1737629525175,0.83666569,101450.0,101440.0,3.8e-07]
[1737629525360,0.85884156,101450.0,101440.0,3.8e-07]
[1737629525776,0.85884156,101450.0,101440.0,0.00015198]
[1737629526181,0.7280581,101450.0,101440.0,0.00015198]
[1737629526377,0.55288223,101450.0,101440.0,0.00015198]
[1737629528403,0.53288223,101450.0,101440.0,0.00015198]
[1737629528633,0.55288223,101450.0,101440.0,0.00015198]
[1737629529505,0.56258053,101450.0,101440.0,0.00015198]
[1737629530288,0.64258053,101450.0,101440.0,0.00015198]
[1737629531211,0.66558053,101450.0,101440.0,0.00015198]
[1737629531866,0.84972134,101450.0,101440.0,9.8e-07]
[1737629532076,0.86763986,101450.0,101440.0,9.8e-07]
[1737629532217,1.62633986,101450.0,101440.0,9.8e-07]
[1737629533148,1.62633986,101450.0,101440.0,3.8e-07]
[1737629533351,1.63533986,101450.0,101440.0,3.8e-07]
[1737629533564,1.64433986,101450.0,101440.0,3.8e-07]
[1737629533770,1.63533986,101450.0,101440.0,3.8e-07]
[1737629534176,1.64433986,101450.0,101440.0,3.8e-07]
[1737629535413,1.70354986,101450.0,101440.0,3.8e-07]
[1737629536086,1.72299489,101450.0,101440.0,3.8e-07]
[1737629536495,1.70417637,101450.0,101440.0,3.8e-07]
[1737629536698,1.74023637,101450.0,101440.0,3.8e-07]
[1737629537341,1.75919656,101450.0,101440.0,3.8e-07]
[1737629540611,1.74023637,101450.0,101440.0,3.8e-07]
[1737629541205,1.7180605,101450.0,101440.0,3.8e-07]
[1737629542483,1.74023637,101450.0,101440.0,3.8e-07]
[1737629542811,1.62388556,101450.0,101440.0,3.8e-07]
[1737629543415,1.57478556,101450.0,101440.0,3.8e-07]
[1737629543818,1.59778556,101450.0,101440.0,3.8e-07]
[1737629544160,1.62478556,101450.0,101440.0,3.8e-07]
[1737629544364,0.39164053,101450.0,101440.0,3.8e-07]
[1737629544567,0.59164053,101450.0,101440.0,3.8e-07]
[1737629545014,0.76050547,101450.0,101440.0,3.8e-07]
[1737629545223,0.73350547,101450.0,101440.0,3.8e-07]
[1737629545746,0.61283978,101450.0,101440.0,3.8e-07]
[1737629546149,0.62183978,101450.0,101440.0,3.8e-07]
[1737629546513,0.61283978,101450.0,101440.0,3.8e-07]
[1737629547107,0.62183978,101450.0,101440.0,3.8e-07]
[1737629547339,0.58577978,101450.0,101440.0,3.8e-07]
[1737629547542,0.64477978,101450.0,101440.0,3.8e-07]
[1737629547748,0.59477978,101450.0,101440.0,3.8e-07]
[1737629548155,0.91847978,101450.0,101440.0,3.8e-07]
[1737629548356,1.03044472,101450.0,101440.0,3.8e-07]
[1737629548534,1.07884472,101450.0,101440.0,3.8e-07]
[1737629550192,1.10102059,101450.0,101440.0,3.8e-07]
[1737629551841,1.07884472,101450.0,101440.0,3.8e-07]
[1737629553314,1.09897465,101450.0,101440.0,3.8e-07]
[1737629554675,0.98700971,101450.0,101440.0,3.8e-07]
[1737629555084,0.76547978,101450.0,101440.0,3.8e-07]
[1737629555290,0.79547978,101450.0,101440.0,3.8e-07]
[1737629555491,0.91847978,101450.0,101440.0,3.8e-07]
[1737629555692,1.06847978,101450.0,101440.0,3.8e-07]
[1737629556231,1.155451,101450.0,101440.0,3.8e-07]
[1737629556907,0.831751,101450.0,101440.0,3.8e-07]
[1737629557906,0.871193,101450.0,101440.0,3.8e-07]
[1737629558283,0.821193,101450.0,101440.0,3.8e-07]
[1737629558597,0.871193,101450.0,101440.0,3.8e-07]
[1737629559693,0.78422178,101450.0,101440.0,3.8e-07]
[1737629559899,0.80422178,101450.0,101440.0,3.8e-07]
[1737629560285,0.73422178,101450.0,101440.0,3.8e-07]
[1737629560496,0.78422178,101450.0,101440.0,3.8e-07]
[1737629560914,0.73422178,101450.0,101440.0,3.8e-07]
[1737629562179,0.84618672,101450.0,101440.0,3.8e-07]
[1737629563027,0.73422178,101450.0,101440.0,3.8e-07]
[1737629565881,0.75422178,101450.0,101440.0,3.8e-07]
[1737629566289,0.65432178,101450.0,101440.0,3.8e-07]
[1737629566630,0.55432178,101450.0,101440.0,3.8e-07]
[1737629567075,0.53432178,101450.0,101440.0,0.04630038]
[1737629567492,0.58432178,101450.0,101440.0,0.04630038]
[1737629567879,0.53432178,101450.0,101440.0,0.04630038]
[1737629568569,0.58432178,101450.0,101440.0,3.8e-07]
[1737629569500,0.53432178,101450.0,101440.0,3.8e-07]
[1737629569704,0.58432178,101450.0,101440.0,3.8e-07]
[1737629570114,0.60336245,101450.0,101440.0,3.8e-07]
[1737629570321,0.53432178,101450.0,101440.0,3.8e-07]
[1737629570661,0.62248774,101450.0,101440.0,3.8e-07]
[1737629571200,0.77708774,101450.0,101440.0,3.8e-07]
[1737629571422,0.72708774,101450.0,101440.0,3.8e-07]
[1737629571591,0.82708774,101450.0,101440.0,3.8e-07]
[1737629577805,0.73892178,101450.0,101440.0,3.8e-07]
[1737629583742,1.06262178,101450.0,101440.0,3.8e-07]
[1737629584548,1.17458672,101450.0,101440.0,3.8e-07]
[1737629584672,0.24859,101430.0,101420.0,0.04094268]
[1737629584883,0.56986717,101430.0,101420.0,0.04099325]
[1737629586560,0.67236717,101430.0,101420.0,5.057e-05]
[1737629586980,0.45790223,101430.0,101420.0,5.057e-05]
[1737629587902,0.45790223,101430.0,101420.0,0.04505057]
[1737629589672,0.46775265,101430.0,101420.0,0.04505057]
[1737629589878,0.46775265,101430.0,101420.0,0.0451425]
[1737629593332,0.39859,101430.0,101420.0,0.1240425]
[1737629593969,0.39859,101430.0,101420.0,0.0789]
[1737629594370,0.51055494,101430.0,101420.0,0.0789]
[1737629596879,0.51055494,101430.0,101420.0,0.1251]
[1737629599889,0.51055494,101430.0,101420.0,0.223699]
[1737629600107,0.39859,101430.0,101420.0,0.223699]
[1737629600510,0.39859,101430.0,101420.0,0.1251]
[1737629600849,0.51055494,101430.0,101420.0,0.1251]
[1737629601212,0.51055494,101430.0,101420.0,0.0462]
[1737629601885,0.51055494,101430.0,101410.0,0.1213]
[1737629601886,0.098599,101420.0,101410.0,0.1213]
[1737629602694,0.098599,101420.0,101410.0,0.219909]
[1737629603267,0.098599,101420.0,101410.0,0.30401212]
[1737629603719,0.098599,101420.0,101410.0,0.219909]
[1737629604270,0.17212832,101420.0,101410.0,0.219909]
[1737629605863,0.098599,101420.0,101410.0,0.219909]
[1737629608820,0.00029925,101430.0,101420.0,0.175199]
[1737629609047,0.00029925,101430.0,101420.0,0.22488489]
[1737629609248,0.00029925,101430.0,101420.0,0.223899]
[1737629609456,0.00029925,101430.0,101420.0,0.25077477]
[1737629614117,0.00029925,101430.0,101420.0,0.34826456]
[1737629614326,0.00029925,101430.0,101420.0,0.52126456]
[1737629615284,0.00029925,101430.0,101420.0,0.653269]
[1737629615488,0.00029925,101430.0,101420.0,0.71287585]
[1737629615695,0.00029925,101430.0,101420.0,0.74358331]
[1737629616113,2.5e-07,101430.0,101420.0,0.74358331]
[1737629616941,0.00029925,101450.0,101440.0,0.17058]
[1737629617150,0.00045067,101450.0,101440.0,0.67522813]
[1737629617352,0.00045067,101450.0,101440.0,0.67424263]
[1737629617769,0.00045067,101450.0,101440.0,0.70489626]
[1737629618192,0.08818913,101470.0,101460.0,0.248561]
[1737629618397,0.08818913,101470.0,101460.0,0.54901273]
[1737629618609,0.08818913,101470.0,101460.0,0.69636002]
[1737629618835,0.08818913,101470.0,101460.0,0.75853958]
[1737629619043,0.08818913,101470.0,101460.0,0.72697548]
[1737629619447,0.08818913,101470.0,101460.0,0.69636002]
[1737629621442,0.00029904,101480.0,101470.0,0.173]
[1737629621672,0.00029904,101480.0,101470.0,0.67915784]
[1737629621882,0.00029904,101480.0,101470.0,0.67817263]
[1737629622060,0.00029904,101480.0,101470.0,0.74817263]
[1737629623990,4e-08,101480.0,101470.0,0.74817263]
[1737629625327,4e-08,101480.0,101470.0,0.78972242]
[1737629625488,4e-08,101480.0,101470.0,0.75815832]
[1737629626316,1e-08,101500.0,101490.0,0.141531]
[1737629626537,0.00015162,101500.0,101490.0,0.55787442]
[1737629626674,0.00015162,101500.0,101490.0,0.55688943]
[1737629628476,0.00015162,101500.0,101490.0,0.60688943]
[1737629628632,0.00015162,101500.0,101490.0,0.57648938]
[1737629628841,0.00015162,101500.0,101490.0,0.62648938]
[1737629629443,0.00015162,101500.0,101490.0,0.60648938]
[1737629629644,0.00015162,101500.0,101490.0,0.62648938]
[1737629630912,0.00015162,101500.0,101490.0,0.53348938]
[1737629631118,0.00015162,101500.0,101490.0,0.55648938]
[1737629631857,0.00015162,101500.0,101490.0,0.56616959]
[1737629632714,0.00015162,101500.0,101490.0,0.58616959]
[1737629633794,0.00015162,101500.0,101490.0,0.37606515]
[1737629634217,0.00015162,101500.0,101490.0,0.32666515]
[1737629634826,0.00015162,101500.0,101490.0,0.43866959]
[1737629635028,0.00015162,101500.0,101490.0,0.45866959]
[1737629638850,0.00015162,101500.0,101490.0,0.43866959]
[1737629640164,0.00015162,101500.0,101490.0,0.34006515]
[1737629640833,0.00015162,101500.0,101490.0,0.45206959]
[1737629641759,0.00015162,101500.0,101490.0,0.47206959]
[1737629644408,0.00015162,101500.0,101490.0,0.58407403]
[1737629646157,0.01022209,101510.0,101500.0,0.191522]
[1737629646403,0.01018209,101510.0,101500.0,0.69910587]
[1737629646604,0.01018209,101510.0,101500.0,0.69812102]
[1737629646758,9e-08,101510.0,101500.0,0.80615311]
[1737629647180,9e-08,101510.0,101500.0,0.83390963]
[1737629649269,9e-08,101510.0,101500.0,0.94591407]
[1737629649527,9e-08,101510.0,101500.0,0.83390963]
[1737629649748,1e-08,101530.0,101520.0,0.266402]
[1737629649953,1e-08,101530.0,101520.0,0.72380027]
[1737629650153,1e-08,101530.0,101520.0,0.75453236]
[1737629650357,1e-08,101530.0,101520.0,0.93227547]
[1737629650541,1e-08,101530.0,101520.0,0.90439928]
[1737629651611,1e-08,101530.0,101520.0,0.85439928]
[1737629651938,1e-08,101530.0,101520.0,0.90439928]
[1737629652345,1e-08,101530.0,101520.0,0.85439928]
[1737629652784,1e-08,101530.0,101520.0,0.90439928]
[1737629654471,1e-08,101530.0,101520.0,0.9141403]
[1737629654902,0.00029925,101540.0,101520.0,0.9141403]
[1737629654903,0.00021002,101540.0,101530.0,0.121493]
[1737629655103,0.0007152,101540.0,101530.0,0.43971335]
[1737629655428,0.0007152,101540.0,101530.0,0.48971335]
[1737629656295,0.0007152,101540.0,101530.0,0.43971335]
[1737629656942,0.0786152,101540.0,101530.0,0.28470891]
[1737629657142,0.1272152,101540.0,101530.0,0.28470891]
[1737629657392,0.1272152,101540.0,101530.0,0.43470891]
[1737629659022,0.1272152,101540.0,101530.0,0.54671335]
[1737629659226,0.0786152,101540.0,101530.0,0.54671335]
[1737629659845,0.0007152,101540.0,101530.0,0.58971335]
[1737629660822,0.0007152,101540.0,101530.0,0.59001239]
[1737629664355,0.0007152,101540.0,101530.0,0.57001239]
[1737629664787,0.1273152,101540.0,101530.0,0.44792795]
[1737629664922,0.1273152,101540.0,101530.0,0.29792795]
[1737629665327,0.1273152,101540.0,101530.0,0.44792795]
[1737629667128,0.1273152,101540.0,101530.0,0.55993239]
[1737629667129,0.0774152,101540.0,101530.0,0.55993239]
[1737629668510,0.0774152,101540.0,101530.0,0.44792795]
[1737629670645,0.0774152,101540.0,101530.0,0.35905933]
[1737629671075,0.0774152,101540.0,101530.0,0.34613933]
[1737629671277,0.1247152,101540.0,101530.0,0.09879204]
[1737629677255,0.2231982,101540.0,101530.0,0.09879204]
[1737629677457,0.1247152,101540.0,101530.0,0.09879204]
[1737629677860,0.1247152,101540.0,101530.0,0.15740276]
[1737629681002,0.1247152,101540.0,101530.0,0.25475005]
[1737629681422,0.08817701,101540.0,101530.0,0.15740276]
[1737629681629,0.48666001,101540.0,101530.0,0.15740276]
[1737629681830,0.38817701,101540.0,101530.0,0.15740276]
[1737629682643,0.4926951,101550.0,101530.0,0.55136176]
[1737629682772,0.49284659,101550.0,101530.0,0.55136176]
[1737629683185,0.59588959,101550.0,101540.0,0.098483]
[1737629683407,0.59588959,101550.0,101540.0,0.17331568]
[1737629683610,0.30045159,101550.0,101540.0,0.17331568]
[1737629685713,0.07955159,101550.0,101540.0,0.27066297]
[1737629686413,0.00045159,101550.0,101540.0,0.27066297]
[1737629686970,0.00045159,101550.0,101540.0,0.29011406]
[1737629689121,0.00045159,101550.0,101540.0,0.5521185]
[1737629689323,0.00045159,101550.0,101540.0,0.56170762]
[1737629689733,0.00045159,101550.0,101540.0,0.60470762]
[1737629689946,0.00045159,101550.0,101540.0,0.76198267]
[1737629690148,0.00045159,101550.0,101540.0,0.81188267]
[1737629690534,0.00045159,101550.0,101540.0,0.82484267]
[1737629695383,0.00045159,101550.0,101540.0,0.82476267]
[1737629695834,0.00045159,101550.0,101540.0,0.77476267]
[1737629696028,0.00045159,101550.0,101540.0,0.82476267]
[1737629696251,0.00045159,101550.0,101540.0,0.82506171]
[1737629697608,0.00045159,101550.0,101540.0,0.93706615]
[1737629697780,0.00045159,101550.0,101540.0,0.63568171]
[1737629697986,0.00045159,101550.0,101540.0,0.77686171]
[1737629699894,5.9e-07,101550.0,101540.0,0.77686171]
[1737629702952,5.9e-07,101550.0,101540.0,0.88886615]
[1737629703541,0.07909925,101570.0,101560.0,0.098463]
[1737629703767,0.00029925,101570.0,101560.0,0.55533176]
[1737629703894,0.00029925,101570.0,101560.0,0.55434733]
[1737629705132,2.5e-07,101570.0,101560.0,0.55434733]
[1737629705558,2.5e-07,101570.0,101560.0,0.58491]
[1737629706089,0.00029925,101590.0,101580.0,0.118444]
[1737629706255,6.9e-07,101590.0,101580.0,0.83179732]
[1737629706508,6.9e-07,101590.0,101580.0,0.83081317]
[1737629707121,6.9e-07,101590.0,101580.0,0.69880873]
[1737629707330,6.9e-07,101590.0,101580.0,0.59350873]
[1737629707509,6.9e-07,101590.0,101580.0,0.57350873]
[1737629707744,6.9e-07,101590.0,101580.0,0.59350873]
[1737629708492,6.9e-07,101590.0,101580.0,0.60316243]
[1737629709106,6.9e-07,101590.0,101580.0,0.69952675]
[1737629709307,6.9e-07,101590.0,101580.0,0.62312675]
[1737629709683,0.0001424,101590.0,101580.0,0.73513119]
[1737629709885,0.0001424,101590.0,101580.0,0.93200619]
[1737629710101,1.88208296,101600.0,101590.0,0.25343844]
[1737629710306,1.88208296,101600.0,101590.0,0.30669902]
[1737629710477,1.88208296,101600.0,101590.0,0.40513302]
[1737629712241,1.88208296,101600.0,101590.0,0.29312858]
[1737629713890,1.88208296,101600.0,101590.0,0.40513302]
[1737629714724,1.99208296,101600.0,101590.0,0.30778573]
[1737629714946,2.1860874,101600.0,101590.0,0.098434]
[1737629715181,2.13928296,101600.0,101590.0,0.098434]
[1737629715382,0.082,101590.0,101580.0,0.32492602]
[1737629715510,0.102,101590.0,101580.0,0.31527232]
[1737629715922,0.0986,101580.0,101570.0,0.30495948]
[1737629716146,0.0986,101580.0,101570.0,0.37633487]
[1737629716946,0.0986,101580.0,101570.0,0.39565384]
[1737629717835,0.0986,101580.0,101570.0,0.38603136]
[1737629718667,0.0986,101580.0,101570.0,0.31480741]
[1737629721390,0.0986,101580.0,101570.0,0.31510645]
[1737629725934,0.43439573,101580.0,101570.0,0.01976945]
[1737629726134,0.73439573,101580.0,101570.0,0.00045048]
[1737629727850,0.84439573,101580.0,101570.0,0.00045048]
[1737629734922,0.84453813,101580.0,101570.0,0.00045048]
[1737629737900,0.84453813,101580.0,101570.0,0.09890448]
[1737629740015,0.63408969,101580.0,101570.0,0.11247342]
[1737629741170,0.73253369,101580.0,101570.0,0.11247342]
[1737629741881,0.84453813,101580.0,101570.0,0.11247342]
[1737629742116,0.73253369,101580.0,101570.0,0.09890448]
[1737629742327,0.84453813,101580.0,101570.0,0.00045048]
[1737629742537,0.99453813,101580.0,101570.0,0.00045048]
[1737629742761,1.19954257,101580.0,101570.0,0.00045048]
[1737629743222,0.3829,101550.0,101540.0,0.31524148]
[1737629743433,0.69072473,101550.0,101540.0,0.01980848]
[1737629743648,0.56372473,101550.0,101540.0,0.00029904]
[1737629745359,0.56372473,101550.0,101540.0,0.09878204]
[1737629745512,0.56372473,101550.0,101540.0,0.00029904]
[1737629747782,0.57364329,101550.0,101540.0,0.00029904]
[1737629750085,0.75564773,101550.0,101540.0,0.00029904]
[1737629750292,0.69314329,101550.0,101540.0,0.00029904]
[1737629750705,0.67314329,101550.0,101540.0,0.00029904]
[1737629750902,0.69314329,101550.0,101540.0,0.00029904]
[1737629751520,0.67314329,101550.0,101540.0,0.00029904]
[1737629753654,0.59022473,101550.0,101540.0,0.09878204]
[1737629753857,0.3829,101550.0,101540.0,0.09878204]
[1737629754710,0.5329,101550.0,101540.0,0.09878204]
[1737629755725,0.17,101550.0,101540.0,0.09878204]
[1737629756144,0.17,101550.0,101540.0,0.19242055]
[1737629756875,0.17,101550.0,101540.0,0.09878204]
[1737629764016,0.268473,101550.0,101540.0,0.09878204]
[1737629764494,0.248473,101550.0,101540.0,0.09878204]
[1737629765153,0.15,101550.0,101540.0,0.09878204]
[1737629767091,0.248473,101550.0,101540.0,0.09878204]
[1737629767301,0.66052473,101550.0,101540.0,0.00029904]
[1737629767505,0.77052473,101550.0,101540.0,0.00029904]
[1737629768926,1.00252917,101550.0,101540.0,0.00029904]
[1737629769534,0.89052473,101550.0,101540.0,0.00029904]
[1737629770589,1.01240379,101550.0,101540.0,0.00029904]
[1737629772060,0.79939935,101550.0,101540.0,0.00029904]
[1737629772271,0.80839935,101550.0,101540.0,0.00029904]
[1737629772478,0.92040379,101550.0,101540.0,0.00029904]
[1737629773526,0.3,101520.0,101510.0,0.10694582]
[1737629773723,0.398502,101520.0,101510.0,0.30411331]
[1737629774669,0.3,101520.0,101510.0,0.30411331]
[1737629775680,0.3,101520.0,101510.0,0.28477557]
[1737629776174,0.32,101520.0,101510.0,0.28477557]
[1737629776298,0.02,101530.0,101510.0,0.40651022]
[1737629776517,0.02,101530.0,101520.0,0.098502]
[1737629776717,0.02,101530.0,101520.0,0.295494]
[1737629777583,0.02,101540.0,101530.0,0.098493]
[1737629778956,0.51048744,101540.0,101530.0,0.098493]
[1737629779160,0.02,101530.0,101520.0,0.295483]
[1737629779365,0.3,101530.0,101520.0,0.295483]
[1737629780091,0.62061529,101540.0,101520.0,0.295483]